fUSD/lending_fUSD_20260318
["ID","MTS","AMOUNT","RATE_DAILY","PERIOD"]
[408540829,1773869045910,372.81,0.00022866,120]
[408540830,1773869046544,559.22,0.00024181,120]
[408540831,1773869046652,745.62,0.00025497,120]
[408540832,1773869047659,932.03,0.00026812,120]
[408540833,1773869051627,1118.43,0.00028127,120]
[408540834,1773869052029,1304.84,0.00029442,120]
[408540835,1773869070287,451.04723036,0.0003013,120]
[408540836,1773869107174,157.94,0.00021558,120]
[408540837,1773869107507,315.87,0.00022874,120]
[408540838,1773869107852,473.81,0.00024189,120]
[408540839,1773869108200,631.74,0.00025505,120]
[408540840,1773869108553,789.68,0.00026821,120]
[408540841,1773869109154,947.61,0.00028137,120]
[408540842,1773869109291,1105.55,0.00029452,120]
[408540843,1773869146309,10000.0,0.00030137,120]
[408540844,1773869156200,343.77037489,0.0003013,120]
[408540845,1773869165969,560.83,0.00030137,120]
[408540846,1773869171293,150.0,0.00021478,120]
[408540847,1773869171657,267.63,0.00022789,120]
[408540848,1773869172014,401.44,0.00024099,120]
[408540849,1773869172402,535.26,0.0002541,120]
[408540850,1773869172755,669.07,0.00026721,120]
[408540851,1773869173113,802.89,0.00028032,120]
[408540852,1773869173554,936.7,0.00029343,120]
[408540853,1773869195116,-159.43626068,0.00011507,2]
[408540854,1773869201967,150.0,0.00021475,120]
[408540855,1773869202308,226.58,0.00022785,120]
[408540856,1773869202667,339.87,0.00024096,120]
[408540857,1773869203035,453.16,0.00025407,120]
[408540858,1773869203431,566.45,0.00026717,120]
[408540859,1773869203802,679.74,0.00028028,120]
[408540860,1773869204676,793.03,0.00029339,120]
[408540861,1773869208502,748.28,0.000161,120]
[408540862,1773869234957,150.0,0.00021473,120]
[408540863,1773869235338,191.57,0.00022784,120]
[408540864,1773869235678,287.36,0.00024094,120]
[408540865,1773869236027,383.15,0.00025405,120]
[408540866,1773869236625,478.93,0.00026715,120]
[408540867,1773869236778,574.72,0.00028026,120]
[408540868,1773869237827,670.51,0.00029337,120]
[408540869,1773869268750,150.0,0.00021465,120]
[408540870,1773869269114,161.72,0.00022775,120]
[408540871,1773869269481,242.59,0.00024085,120]
[408540872,1773869270015,323.45,0.00025395,120]
[408540873,1773869270236,404.31,0.00026705,120]
[408540874,1773869270615,485.17,0.00028015,120]
[408540875,1773869271228,566.03,0.00029325,120]
[408540876,1773869300257,150.0,0.00021478,120]
[408540877,1773869300703,150.0,0.00022789,120]
[408540878,1773869301037,204.4,0.000241,120]
[408540879,1773869301928,272.54,0.00025411,120]
[408540880,1773869302296,340.67,0.00026721,120]
[408540881,1773869302943,408.81,0.00028032,120]
[408540882,1773869303039,476.94,0.00029343,120]
[408540883,1773869326643,2373.0,0.0003,120]
[408540884,1773869328017,575.68285676,0.00029,120]
[408540885,1773869331772,150.0,0.00021512,120]
[408540886,1773869332138,150.0,0.00022825,120]
[408540887,1773869332491,171.62,0.00024138,120]
[408540888,1773869332851,228.83,0.00025451,120]
[408540889,1773869333207,286.04,0.00026764,120]
[408540890,1773869333573,343.24,0.00028077,120]
[408540891,1773869334457,400.45,0.0002939,120]
[408540892,1773869335015,159.88617756,0.0003,120]
[408540893,1773869337830,48267.11456096,9.5e-05,3]
[408540894,1773869339697,224.81301984,0.0003,120]
[408540895,1773869345451,1014.91181312,0.0003,120]
[408540896,1773869348067,-243.55565348,0.00011312,2]
[408540897,1773869365264,150.0,0.00021515,120]
[408540898,1773869366155,150.0,0.00022829,120]
[408540899,1773869366253,150.0,0.00024142,120]
[408540900,1773869366341,191.08,0.00025455,120]
[408540901,1773869366697,238.85,0.00026768,120]
[408540902,1773869367057,286.62,0.00028081,120]
[408540903,1773869367406,334.39,0.00029394,120]
[408540904,1773869394523,150.0,0.00021615,120]
[408540905,1773869394906,150.0,0.00022935,120]
[408540906,1773869395247,150.0,0.00024254,120]
[408540907,1773869395622,158.33,0.00025573,120]
[408540908,1773869396015,197.92,0.00026892,120]
[408540909,1773869396374,237.5,0.00028212,120]
[408540910,1773869396720,277.08,0.00029531,120]
[408540911,1773869397339,673.45,0.000161,120]
[408540912,1773869400715,150.49307543,0.00017772,120]
[408540915,1773869423600,150.0,0.00021607,120]
[408540916,1773869424192,150.0,0.00022926,120]
[408540917,1773869424545,150.0,0.00024245,120]
[408540918,1773869424900,150.0,0.00025563,120]
[408540919,1773869425241,161.89,0.00026882,120]
[408540920,1773869425615,194.27,0.00028201,120]
[408540921,1773869425989,226.65,0.0002952,120]
[408540931,1773869431958,-798.37373932,0.00011507,2]
[408540932,1773869431967,-195.16383017,0.00011507,2]
[408540933,1773869431977,-151.0,0.00011507,2]
[408540934,1773869431990,-1500.0,0.00012587,2]
[408540935,1773869431999,-166.66,0.00012613,2]
[408540936,1773869432009,-300.0,0.00012698,2]
[408540937,1773869432019,-1200.0,0.00012698,2]
[408540938,1773869432029,-300.0,0.00012698,2]
[408540939,1773869432038,-4928.11,0.00012699,2]
[408540940,1773869432048,-166.66,0.00012879,2]
[408540941,1773869432065,-152.63432459,0.00013,15]
[408540942,1773869432074,-151.0,0.00013127,2]
[408540943,1773869432083,-279.12240009,0.00013127,2]
[408540944,1773869432095,-500.0,0.00013127,2]
[408540945,1773869432104,-195.2163949,0.00013127,2]
[408540946,1773869432114,-200.0,0.00013127,2]
[408540947,1773869432124,-151.0,0.00013127,2]
[408540948,1773869432133,-180.21828672,0.00013134,2]
[408540949,1773869432143,-150.0,0.00013134,2]
[408540950,1773869432153,-30351.14520342,0.00013135,2]
[408540951,1773869432165,-46001.41043395,0.00013135,2]
[408540952,1773869432180,-53812.75271157,0.00013135,2]
[408540953,1773869432212,-9638.93630295,0.00013135,2]
[408540954,1773869432260,-3290.24999999,0.00013135,2]
[408540956,1773869432280,-1862.303204,0.00013135,2]
[408540959,1773869432302,-3567.19834847,0.00013135,2]
[408540962,1773869432325,-360.80856145,0.00013135,2]
[408540964,1773869432345,-304.27734113,0.00013135,2]
[408540966,1773869438147,-41870.49227075,0.00013135,2]
[408540990,1773869440985,-21385.16562232,0.00013135,2]
[408540991,1773869440999,-166.66,0.00013144,2]
[408540992,1773869441009,-375.28,0.00013156,2]
[408540993,1773869441023,-47844.39682472,0.00013222,2]
[408540994,1773869441032,-1600.0,0.00013277,2]
[408540995,1773869441042,-616.2,0.00013277,2]
[408540996,1773869441051,-6148.39,0.00013277,2]
[408540997,1773869441060,-500.0,0.00013277,2]
[408540998,1773869441069,-166.66,0.0001341,2]
[408540999,1773869441078,-2751.0,0.00013425,2]
[408541000,1773869441087,-275.34195137,0.000136,2]
[408541001,1773869441097,-693.76146859,0.000136,2]
[408541002,1773869441106,-700.0,0.000136,4]
[408541003,1773869441115,-273.84,0.00013646,2]
[408541004,1773869441124,-20414.9679876,0.00013662,2]
[408541005,1773869441133,-200.0,0.00013675,2]
[408541006,1773869441143,-166.66,0.00013675,2]
[408541007,1773869441152,-500.0,0.00013698,2]
[408541008,1773869441161,-500.0,0.00013698,2]
[408541009,1773869441170,-500.0,0.00013698,2]
[408541010,1773869441180,-500.0,0.00013698,2]
[408541011,1773869441189,-1504.50263248,0.000137,2]
[408541012,1773869441199,-4041.67230894,0.000137,2]
[408541013,1773869441208,-3346.06451501,0.000137,2]
[408541014,1773869441218,-3693.86841193,0.000137,2]
[408541015,1773869441227,-1500.0,0.000137,5]
[408541016,1773869441237,-500.0,0.0001376,2]
[408541017,1773869441247,-151.0,0.0001376,2]
[408541018,1773869441256,-151.0,0.0001376,2]
[408541019,1773869441265,-151.0,0.0001376,2]
[408541020,1773869441275,-151.0,0.0001376,2]
[408541021,1773869441284,-151.0,0.0001376,2]
[408541022,1773869441294,-151.0,0.0001376,2]
[408541023,1773869441303,-151.0,0.0001376,2]
[408541024,1773869441313,-578.22,0.00013761,2]
[408541025,1773869441322,-500.0,0.00013762,2]
[408541026,1773869441331,-500.0,0.00013762,2]
[408541027,1773869441340,-500.0,0.00013762,2]
[408541028,1773869441349,-500.0,0.00013762,2]
[408541029,1773869441359,-500.00156324,0.00013762,2]
[408541030,1773869441369,-500.0,0.00013762,2]
[408541031,1773869441378,-500.0,0.00013762,2]
[408541032,1773869441389,-500.0,0.00013762,2]
[408541033,1773869441402,-500.0,0.00013762,2]
[408541034,1773869441413,-500.0,0.00013762,2]
[408541035,1773869441422,-500.0,0.00013762,2]
[408541036,1773869441431,-500.0,0.00013762,2]
[408541037,1773869441441,-500.0,0.00013762,2]
[408541038,1773869441451,-500.0,0.00013762,2]
[408541039,1773869441461,-500.0,0.00013762,2]
[408541040,1773869441470,-500.0,0.00013762,2]
[408541041,1773869441479,-500.0,0.00013762,2]
[408541042,1773869441488,-500.0,0.00013762,2]
[408541043,1773869441497,-500.0,0.00013762,2]
[408541044,1773869441507,-500.0,0.00013762,2]
[408541045,1773869441517,-500.0,0.00013762,2]
[408541046,1773869441526,-500.0,0.00013762,2]
[408541047,1773869441537,-500.0,0.00013762,2]
[408541048,1773869441548,-500.0,0.00013762,2]
[408541049,1773869441557,-500.0,0.00013762,2]
[408541050,1773869441566,-500.0,0.00013762,2]
[408541051,1773869441575,-500.0,0.00013762,2]
[408541052,1773869441585,-500.0,0.00013762,2]
[408541053,1773869441594,-500.0,0.00013762,2]
[408541054,1773869441603,-500.0,0.00013762,2]
[408541055,1773869441613,-500.0,0.00013762,2]
[408541056,1773869441622,-500.0,0.00013762,2]
[408541057,1773869441632,-500.0,0.00013762,2]
[408541058,1773869441641,-296.03589012,0.00013762,2]
[408541059,1773869441651,-500.0,0.00013762,2]
[408541060,1773869441660,-500.0,0.00013762,2]
[408541061,1773869441671,-500.0,0.00013762,2]
[408541062,1773869441680,-500.0,0.00013762,2]
[408541063,1773869441690,-500.0,0.00013762,2]
[408541064,1773869441701,-500.0,0.00013762,2]
[408541065,1773869441711,-500.0,0.00013762,2]
[408541066,1773869441720,-500.0,0.00013762,2]
[408541067,1773869441730,-500.0,0.00013762,2]
[408541068,1773869441739,-500.0,0.00013762,2]
[408541069,1773869441749,-500.0,0.00013762,2]
[408541070,1773869441759,-501.50298323,0.00013762,2]
[408541071,1773869441768,-500.0,0.00013762,2]
[408541072,1773869441777,-500.0,0.00013762,2]
[408541073,1773869441790,-500.0,0.00013762,2]
[408541074,1773869441799,-500.0,0.00013762,2]
[408541075,1773869441808,-515.26277344,0.00013762,2]
[408541076,1773869441818,-500.0,0.00013762,2]
[408541077,1773869441828,-500.0,0.00013762,2]
[408541078,1773869441837,-500.0,0.00013762,2]
[408541079,1773869441846,-500.0,0.00013762,2]
[408541080,1773869441856,-500.0,0.00013762,2]
[408541081,1773869441866,-500.0,0.00013762,2]
[408541082,1773869441878,-500.0,0.00013762,2]
[408541083,1773869441888,-500.0,0.00013762,2]
[408541084,1773869441897,-500.0,0.00013762,2]
[408541085,1773869441906,-500.0,0.00013762,2]
[408541086,1773869441915,-500.0,0.00013762,2]
[408541087,1773869441925,-500.0,0.00013762,2]
[408541088,1773869441934,-164.50003126,0.00013762,2]
[408541089,1773869441944,-500.0,0.00013762,2]
[408541090,1773869441953,-500.0,0.00013762,2]
[408541091,1773869441962,-500.0,0.00013762,2]
[408541092,1773869441972,-500.0,0.00013762,2]
[408541093,1773869441981,-500.0,0.00013762,2]
[408541094,1773869441991,-500.0,0.00013762,2]
[408541095,1773869442002,-500.0,0.00013762,2]
[408541096,1773869442012,-500.0,0.00013762,2]
[408541097,1773869442021,-500.0,0.00013762,2]
[408541098,1773869442030,-500.0,0.00013762,2]
[408541099,1773869442039,-500.0,0.00013762,2]
[408541100,1773869442048,-500.0,0.00013762,2]
[408541101,1773869442057,-503.55073109,0.00013762,2]
[408541102,1773869442066,-500.0,0.00013762,2]
[408541103,1773869442076,-500.0,0.00013762,2]
[408541104,1773869442085,-500.0,0.00013762,2]
[408541105,1773869442094,-200.0,0.00013762,2]
[408541106,1773869442312,-200.0,0.00013762,2]
[408541107,1773869442341,-200.0,0.00013762,2]
[408541108,1773869442351,-200.0,0.00013762,2]
[408541109,1773869442359,-200.0,0.00013762,2]
[408541110,1773869442369,-500.0,0.00013762,2]
[408541111,1773869442378,-500.0,0.00013762,2]
[408541112,1773869442388,-500.0,0.00013762,2]
[408541113,1773869442397,-529.61791857,0.00013762,2]
[408541114,1773869442407,-500.0,0.00013762,2]
[408541115,1773869442417,-500.0,0.00013762,2]
[408541116,1773869442426,-500.0,0.00013762,2]
[408541117,1773869442436,-324.23961228,0.00013762,2]
[408541118,1773869442446,-500.0,0.00013762,2]
[408541119,1773869442456,-1041.34035958,0.00013767,2]
[408541120,1773869442465,-316.97510859,0.00013791,2]
[408541121,1773869442477,-2300.0,0.000138,5]
[408541122,1773869442486,-151.0,0.00013847,2]
[408541123,1773869442496,-159.54092276,0.00013847,2]
[408541124,1773869442506,-500.0,0.00013849,2]
[408541125,1773869442517,-500.0,0.00013849,2]
[408541126,1773869442527,-500.0,0.00013849,2]
[408541127,1773869442536,-500.0,0.00013849,2]
[408541128,1773869442546,-500.0,0.00013849,2]
[408541129,1773869442555,-500.0,0.00013849,2]
[408541130,1773869442565,-500.0,0.00013849,2]
[408541131,1773869442575,-500.0,0.00013849,2]
[408541132,1773869442584,-500.0,0.00013849,2]
[408541133,1773869442594,-500.0,0.00013849,2]
[408541134,1773869442603,-500.0,0.00013849,2]
[408541135,1773869442613,-500.0,0.00013849,2]
[408541136,1773869442624,-500.0,0.00013849,2]
[408541137,1773869442635,-500.0,0.00013849,2]
[408541138,1773869442646,-500.0,0.00013849,2]
[408541139,1773869442656,-500.0,0.00013849,2]
[408541140,1773869442666,-500.0,0.00013849,2]
[408541141,1773869442677,-500.0,0.00013849,2]
[408541142,1773869442686,-500.0,0.00013849,2]
[408541143,1773869442696,-500.0,0.00013849,2]
[408541144,1773869442706,-565.08716826,0.00013849,2]
[408541145,1773869442717,-475.44847711,0.00013849,2]
[408541146,1773869442726,-548.22200997,0.00013849,2]
[408541147,1773869442736,-500.0,0.00013849,2]
[408541148,1773869442745,-500.0,0.00013849,2]
[408541149,1773869442754,-500.0,0.00013849,2]
[408541150,1773869442764,-500.0,0.00013873,2]
[408541152,1773869442773,-500.0,0.00013873,2]
[408541153,1773869442783,-500.0,0.00013873,2]
[408541155,1773869442792,-500.39228547,0.00013873,2]
[408541156,1773869442802,-500.0,0.00013873,2]
[408541157,1773869442811,-500.92534014,0.00013873,2]
[408541158,1773869442821,-547.40961445,0.00013873,2]
[408541159,1773869442830,-160.11943561,0.00013873,2]
[408541160,1773869442840,-160.11926243,0.00013873,2]
[408541161,1773869442850,-220.18118856,0.00013873,2]
[408541162,1773869442859,-160.11936113,0.00013873,2]
[408541164,1773869442869,-160.11904717,0.00013873,2]
[408541166,1773869442878,-383.10920901,0.00013873,2]
[408541168,1773869442887,-160.11947441,0.00013873,2]
[408541170,1773869442897,-500.0,0.00013873,2]
[408541172,1773869442907,-160.12106018,0.00013873,2]
[408541174,1773869442916,-160.12078463,0.00013873,2]
[408541176,1773869442926,-160.10508597,0.00013873,2]
[408541178,1773869442935,-160.11935966,0.00013873,2]
[408541179,1773869442945,-160.11928557,0.00013873,2]
[408541181,1773869442954,-500.0,0.00013873,2]
[408541183,1773869442963,-500.0,0.00013873,2]
[408541185,1773869442972,-500.46927556,0.00013873,2]
[408541187,1773869442982,-500.15528333,0.00013873,2]
[408541189,1773869442992,-500.0,0.00013873,2]
[408541191,1773869443005,-500.0,0.00013873,2]
[408541193,1773869443014,-500.0,0.00013873,2]
[408541195,1773869443023,-226.85274523,0.00013873,2]
[408541197,1773869443036,-500.0,0.00013873,2]
[408541199,1773869443046,-500.0,0.00013873,2]
[408541201,1773869443055,-500.0,0.00013873,2]
[408541202,1773869443066,-500.0,0.00013873,2]
[408541203,1773869443075,-3100.0,0.000139,5]
[408541204,1773869443084,-20414.96798754,0.00013911,2]
[408541205,1773869443094,-420.0,0.0001393,2]
[408541206,1773869443103,-420.0,0.0001393,2]
[408541207,1773869443113,-55931.93278462,0.00013934,2]
[408541208,1773869443122,-166.66,0.00013941,2]
[408541209,1773869443132,-200.0,0.00013963,2]
[408541210,1773869443141,-200.0,0.00013963,2]
[408541211,1773869443150,-500.0,0.00013963,2]
[408541212,1773869443159,-500.0,0.00013963,2]
[408541213,1773869443168,-183.11037888,0.00013963,2]
[408541214,1773869443177,-502.6227765,0.00013963,2]
[408541215,1773869443187,-500.0,0.00013963,2]
[408541216,1773869443197,-500.0,0.00013963,2]
[408541217,1773869443207,-500.0,0.00013963,2]
[408541218,1773869443217,-500.0,0.00013963,2]
[408541219,1773869443226,-500.0,0.00013963,2]
[408541220,1773869443236,-500.0,0.00013963,2]
[408541221,1773869443256,-500.0,0.00013963,2]
[408541222,1773869443266,-500.0,0.00013963,2]
[408541223,1773869443277,-500.0,0.00013963,2]
[408541224,1773869443286,-500.0,0.00013963,2]
[408541225,1773869443296,-500.0,0.00013963,2]
[408541226,1773869443305,-526.89512762,0.00013963,2]
[408541227,1773869443315,-500.0,0.00013963,2]
[408541228,1773869443325,-500.0,0.00013963,2]
[408541229,1773869443335,-500.0,0.00013963,2]
[408541230,1773869443344,-500.0,0.00013963,2]
[408541231,1773869443354,-500.0,0.00013963,2]
[408541232,1773869443364,-500.0,0.00013963,2]
[408541234,1773869443374,-500.0,0.00013963,2]
[408541235,1773869443384,-568.64936411,0.00013963,2]
[408541237,1773869443393,-1680.0,0.00013968,2]
[408541239,1773869443403,-500.0,0.00014034,2]
[408541241,1773869443412,-578.22,0.00014035,2]
[408541242,1773869443422,-2300.0,0.00014082,2]
[408541244,1773869443432,-900.0,0.00014082,2]
[408541245,1773869443442,-316.97510856,0.00014143,2]
[408541246,1773869443451,-492.25502549,0.00014144,2]
[408541247,1773869443461,-20414.96798754,0.00014159,2]
[408541248,1773869443470,-200.0,0.00014223,2]
[408541249,1773869443480,-255.0,0.00014237,2]
[408541250,1773869443489,-500.0,0.00014308,2]
[408541252,1773869443498,-578.22,0.00014309,2]
[408541255,1773869443508,-1300.0,0.00014356,2]
[408541257,1773869443518,-590.49876344,0.00014377,2]
[408541259,1773869443527,-20414.96798754,0.00014408,2]
[408541261,1773869443536,-1046.25965825,0.00014421,2]
[408541263,1773869443545,-1000.0,0.00014421,2]
[408541264,1773869443554,-619.71855644,0.00014421,2]
[408541265,1773869443563,-624.88629479,0.00014421,2]
[408541266,1773869443573,-1000.0,0.00014421,2]
[408541267,1773869443582,-501.38283497,0.00014421,2]
[408541268,1773869443591,-1000.0,0.00014421,2]
[408541269,1773869443600,-696.23259882,0.00014421,2]
[408541270,1773869443609,-1000.0,0.00014421,2]
[408541271,1773869443618,-1000.0,0.00014421,2]
[408541272,1773869443627,-1000.0,0.00014421,2]
[408541273,1773869443637,-1000.0,0.00014421,2]
[408541274,1773869443646,-1000.0,0.00014421,2]
[408541275,1773869443655,-316.97510856,0.00014494,2]
[408541276,1773869443664,-500.0,0.00014503,2]
[408541277,1773869443673,-500.0,0.00014503,2]
[408541278,1773869443682,-500.0,0.00014582,2]
[408541279,1773869443691,-578.22,0.00014583,2]
[408541280,1773869443700,-354.146027,0.00014602,7]
[408541281,1773869443709,-420.845336,0.00014614,7]
[408541282,1773869443718,-351.74276,0.00014614,7]
[408541283,1773869443727,-500.0,0.00014632,2]
[408541284,1773869443737,-500.0,0.00014632,2]
[408541285,1773869443746,-298.06221496,0.00014632,2]
[408541286,1773869443755,-198.12819509,0.00014632,2]
[408541287,1773869443764,-500.0,0.00014632,2]
[408541288,1773869443773,-500.0,0.00014632,2]
[408541289,1773869443783,-395.94969676,0.00014632,2]
[408541290,1773869443791,-500.0,0.00014632,2]
[408541291,1773869443800,-354.90139246,0.00014632,2]
[408541292,1773869443810,-500.0,0.00014632,2]
[408541293,1773869443819,-500.0,0.00014632,2]
[408541294,1773869443829,-158.35125781,0.00014633,2]
[408541295,1773869443838,-500.0,0.00014633,2]
[408541296,1773869443848,-500.0,0.00014633,2]
[408541297,1773869443857,-500.0,0.00014633,2]
[408541298,1773869443866,-500.0,0.00014633,2]
[408541299,1773869443875,-500.0,0.00014633,2]
[408541300,1773869443884,-818.0,0.00014633,2]
[408541301,1773869443894,-818.0,0.00014633,2]
[408541302,1773869443903,-818.0,0.00014633,2]
[408541303,1773869443912,-818.0,0.00014633,2]
[408541304,1773869443922,-648.0,0.00014633,2]
[408541305,1773869443932,-818.0,0.00014633,2]
[408541306,1773869443941,-648.0,0.00014633,2]
[408541307,1773869443951,-818.0,0.00014633,2]
[408541308,1773869443960,-648.0,0.00014633,2]
[408541309,1773869443969,-818.0,0.00014633,2]
[408541310,1773869443979,-648.0,0.00014633,2]
[408541311,1773869443990,-818.0,0.00014633,2]
[408541312,1773869444002,-648.0,0.00014633,2]
[408541313,1773869444012,-818.0,0.00014633,2]
[408541314,1773869444021,-648.0,0.00014633,2]
[408541315,1773869444031,-648.0,0.00014633,2]
[408541316,1773869444041,-500.0,0.00014633,2]
[408541317,1773869444050,-818.0,0.00014633,2]
[408541318,1773869444060,-648.0,0.00014633,2]
[408541319,1773869444069,-500.0,0.00014633,2]
[408541320,1773869444078,-818.0,0.00014633,2]
[408541321,1773869444087,-648.0,0.00014633,2]
[408541322,1773869444097,-500.0,0.00014633,2]
[408541323,1773869444106,-818.0,0.00014633,2]
[408541324,1773869444115,-648.0,0.00014633,2]
[408541325,1773869444124,-500.0,0.00014633,2]
[408541326,1773869444133,-818.0,0.00014633,2]
[408541327,1773869444143,-648.0,0.00014633,2]
[408541328,1773869444152,-500.0,0.00014633,2]
[408541329,1773869444161,-648.0,0.00014633,2]
[408541330,1773869444171,-818.0,0.00014633,2]
[408541331,1773869444180,-500.0,0.00014633,2]
[408541332,1773869444190,-648.0,0.00014633,2]
[408541333,1773869444199,-818.0,0.00014633,2]
[408541334,1773869444208,-500.0,0.00014633,2]
[408541335,1773869444217,-648.0,0.00014633,2]
[408541336,1773869444227,-818.0,0.00014633,2]
[408541337,1773869444236,-500.0,0.00014633,2]
[408541338,1773869444246,-648.0,0.00014633,2]
[408541339,1773869444255,-500.0,0.00014633,2]
[408541340,1773869444264,-648.0,0.00014633,2]
[408541341,1773869444274,-497.17482441,0.00014633,2]
[408541342,1773869444283,-818.0,0.00014633,2]
[408541343,1773869444292,-648.0,0.00014633,2]
[408541344,1773869444301,-818.0,0.00014633,2]
[408541345,1773869444311,-648.0,0.00014633,2]
[408541346,1773869444320,-818.0,0.00014633,2]
[408541347,1773869444329,-648.0,0.00014633,2]
[408541348,1773869444339,-818.0,0.00014633,2]
[408541349,1773869444349,-648.0,0.00014633,2]
[408541350,1773869444358,-818.0,0.00014633,2]
[408541351,1773869444367,-648.0,0.00014633,2]
[408541352,1773869444376,-818.0,0.00014633,2]
[408541353,1773869444386,-648.0,0.00014633,2]
[408541354,1773869444395,-818.0,0.00014633,2]
[408541355,1773869444404,-648.0,0.00014633,2]
[408541356,1773869444413,-836.808346,0.00014633,2]
[408541357,1773869444422,-654.98487185,0.00014633,2]
[408541358,1773869444432,-473.0,0.00014633,2]
[408541359,1773869444441,-473.0,0.00014633,2]
[408541360,1773869444451,-473.0,0.00014633,2]
[408541361,1773869444460,-473.0,0.00014633,2]
[408541362,1773869444469,-473.0,0.00014633,2]
[408541363,1773869444478,-473.0,0.00014633,2]
[408541364,1773869444488,-473.0,0.00014633,2]
[408541365,1773869444497,-500.0,0.00014633,2]
[408541366,1773869444507,-473.0,0.00014633,2]
[408541367,1773869444517,-500.0,0.00014633,2]
[408541368,1773869444526,-473.0,0.00014633,2]
[408541369,1773869444535,-566.69031259,0.00014633,2]
[408541370,1773869444544,-473.0,0.00014633,2]
[408541371,1773869444552,-473.0,0.00014633,2]
[408541372,1773869444561,-473.0,0.00014633,2]
[408541373,1773869444570,-473.0,0.00014633,2]
[408541374,1773869444580,-725.0,0.00014633,2]
[408541375,1773869444589,-473.0,0.00014633,2]
[408541376,1773869444598,-725.0,0.00014633,2]
[408541377,1773869444607,-473.0,0.00014633,2]
[408541378,1773869444616,-725.0,0.00014633,2]
[408541379,1773869444626,-473.0,0.00014633,2]
[408541380,1773869444635,-725.0,0.00014633,2]
[408541381,1773869444644,-725.0,0.00014633,2]
[408541382,1773869444654,-725.0,0.00014633,2]
[408541383,1773869444663,-473.0,0.00014633,2]
[408541384,1773869444672,-725.0,0.00014633,2]
[408541385,1773869444681,-725.0,0.00014633,2]
[408541386,1773869444690,-725.0,0.00014633,2]
[408541387,1773869444699,-725.0,0.00014633,2]
[408541388,1773869444709,-725.0,0.00014633,2]
[408541389,1773869444718,-473.0,0.00014633,2]
[408541390,1773869444727,-725.0,0.00014633,2]
[408541391,1773869444735,-725.0,0.00014633,2]
[408541392,1773869444744,-725.0,0.00014633,2]
[408541393,1773869444754,-725.0,0.00014633,2]
[408541394,1773869444763,-473.0,0.00014633,2]
[408541395,1773869444772,-725.0,0.00014633,2]
[408541396,1773869444781,-725.0,0.00014633,2]
[408541397,1773869444790,-473.0,0.00014633,2]
[408541398,1773869444798,-725.0,0.00014633,2]
[408541399,1773869444807,-473.0,0.00014633,2]
[408541400,1773869444816,-725.0,0.00014633,2]
[408541401,1773869444825,-150.0,0.00014633,2]
[408541402,1773869444834,-150.0,0.00014633,2]